Cogmind - Beta 13 @@@ ROGUE MODE // 2024.04.15 @ 16:46:46 Player: Rizzen Result: Destroyed by G-34 Mercenary with Small Laser Performance ------------- Evolutions (0) 0 Regions Visited (1) 200 Robots Destroyed (36) 180 Value Destroyed (607) 607 Prototype IDs (0) 0 Alien Tech Used (0) 0 Bonus (0) 0 TOTAL SCORE: 987 Bonus ------- None Cogmind --------- Core Integrity 0/250 Matter 276/300 Energy 160/160 System Corruption 0% Temperature Cool (90) Movement Treading (160) Location -10/Materials Parts ------- > --- POWER (1) -------- Light Nuclear Core > --- PROPULSION (2) --- Light Treads Light Treads > --- UTILITY (2) ------ Large Storage Unit Light Armor Plating > --- WEAPON (2) ------- Light Assault Rifle Light Assault Rifle > --- INVENTORY (15) --- Ion Engine Heat Sink Sensor Array Signal Interpreter Light Armor Plating Light Armor Plating Light Armor Plating Light Assault Rifle Light Assault Rifle Grenade Launcher Peak State ------------ > --- POWER ------------ Light Nuclear Core > --- PROPULSION ------- Wheel Wheel > --- UTILITY ---------- Heat Sink Large Storage Unit > --- WEAPON ----------- Medium Laser Medium Laser > --- INVENTORY -------- Ion Engine Sensor Array Signal Interpreter Light Armor Plating Light Armor Plating Light Assault Rifle Light Assault Rifle Light Assault Rifle Light Assault Rifle Grenade Launcher [Rating: 10] Favorites ----------- Power Light Nuclear Core Engine Ion Engine Power Core Light Nuclear Core Propulsion Light Treads Treads Light Treads Leg Aluminum Leg Wheel Wheel Utility Large Storage Unit Device Heat Sink Storage Large Storage Unit Protection Light Armor Plating Weapon Medium Laser Energy Gun Medium Laser Ballistic Gun Light Assault Rifle Launcher Grenade Launcher Build | -11 -10 ------- Run | Yrd Mat Slots Evolved . | . . Power . | . . Propulsion . | . . Utility . | . . Weapon . | . . Parts Attached 34 | 8 26 Power 2 | 1 1 Engine 1 | 1 . Core 1 | . 1 Reactor . | . . Propulsion 11 | 2 9 Treads 6 | 2 4 Leg 3 | . 3 Wheel 2 | . 2 Hover . | . . Flight . | . . Utility 8 | 2 6 Device 4 | 1 3 Storage 2 | 1 1 Processor . | . . Hackware . | . . Protection 2 | . 2 Artifact . | . . Weapon 13 | 3 10 Energy Gun 5 | 1 4 Energy Cannon . | . . Ballistic Gun 5 | 2 3 Ballistic Cannon . | . . Launcher 3 | . 3 Special Weapon . | . . Impact Weapon . | . . Slashing Weapon . | . . Piercing Weapon . | . . Special Melee Weapon . | . . Unidentified Prototypes . | . . Parts Lost 6 | . 6 Power . | . . Propulsion 4 | . 4 Utility . | . . Weapon 2 | . 2 Highest Loss Streak 1 | . 1 To Critical Strikes . | . . Average Slot Usage (%) 95 | . 95 Engine 1 | . 1 Core 12 | . 12 Treads 14 | . 14 Leg 6 | . 6 Wheel 3 | . 3 Device 10 | . 10 Storage 13 | . 13 Protection 3 | . 3 Energy Gun 19 | . 19 Ballistic Gun 7 | . 7 Naked Turns . | . . Heaviest Build 32 | 14 32 Greatest Support 40 | 40 40 Greatest Overweight (x) 3 | . 3 Average Overweight (x) . | . . Largest Inventory Capacity 15 | 8 15 Average Capacity 14 | 6 14 Most Carried 12 | 5 12 Average Carried 6 | 1 7 Final Capacity 15 | 8 15 Final Carried 10 | 2 10 Class Distribution -------------------- 80% | Mutant 19% | Scavenger-Mutant Dominant Class ---------------- Mutant | -10/Materials Resources | -11 -10 ----------- Run | Yrd Mat Matter Collected 677 | 204 473 Remotely . | . . Salvage Created 1039 | 21 1018 Parts 67 | 3 64 Haulers Intercepted 2 | . 2 Recyclers Shooed 1 | . 1 Parts Field Recycled . | . . Retrieved Matter . | . . Parts Self-Destructed . | . . Prevented . | . . Kills | -11 -10 ------- Run | Yrd Mat Combat Hostiles Destroyed 18 | . 18 Guns 15 | . 15 AOE 1 | . 1 Classes Destroyed 9 | 1 8 Worker 4 | . 4 Builder 5 | . 5 Tunneler 1 | 1 . Hauler 2 | . 2 Recycler 2 | . 2 Operator 1 | . 1 Watcher 3 | . 3 Swarmer 6 | . 6 Grunt 12 | . 12 Best Kill Streak 6 | 1 6 Combat Bots Only 3 | . 3 Max Kills in Single Turn 2 | 1 2 Gunslinging 1 | . 1 Exploded 1 | . 1 Melee . | . . Uniques/NPCs Destroyed . | . . Combat | -11 -10 -------- Run | Yrd Mat Hostile Shots Fired 139 | . 139 Missed 25 | . 25 Damage Taken 1205 | . 1205 Core 257 | . 257 Absorbed by Shields . | . . Core Remaining (%) 100 | 100 . Volleys Fired 130 | 5 125 Largest 2 | 2 2 Hottest 100 | 70 100 Shots Fired 237 | 10 227 Gun 227 | 10 217 Cannon . | . . Launcher 10 | . 10 Special . | . . Kinetic 91 | 5 86 Thermal 136 | 5 131 Explosive 10 | . 10 Electromagnetic . | . . Robot Hit Streak 11 | 2 11 Robot Miss Streak 6 | 1 6 Penetration Max . | . . Secondary Targets 3 | . 3 Max Gunslinging Chain 1 | . 1 Shots Hit Robots 138 | 6 132 Core Hits 65 | 1 64 Critical Kills . | . . Critical Parts Destroyed . | . . Critical Strikes 9 | . 9 Burn 9 | . 9 Melee Attacks . | . . Impact . | . . Slashing . | . . Piercing . | . . Sneak Attacks . | . . Combat Hostiles . | . . Follow-up Attacks . | . . Damage Inflicted 1883 | 62 1821 Guns 1515 | 62 1453 Cannons . | . . Explosions 368 | . 368 Melee . | . . Ramming . | . . Kinetic 433 | 24 409 Thermal 1082 | 38 1044 Explosive 368 | . 368 Electromagnetic . | . . Impact . | . . Slashing . | . . Piercing . | . . Highest Corruption . | . . Average Corruption . | . . Corruption Purged . | . . Corruption Blocked . | . . Overload Shots . | . . Overflow Damage 7 | . 7 Projectiles . | . . Explosions 7 | . 7 Melee . | . . Knockbacks . | . . Impact . | . . Kinetic . | . . Secondary . | . . Self-Inflicted Damage 47 | . 47 Shots 2 | . 2 Rammed . | . . Targets Rammed . | . . Kicked . | . . Crushed . | . . Highest Temperature 419 | 70 419 Average Temperature 82 | 32 84 Received Heat Transfer 486 | . 486 Effects 3 | . 3 Shutdowns 1 | . 1 Energy Bleed 1 | . 1 Interference 1 | . 1 Siege Activations . | . . Robots Corrupted . | . . Combat Hostiles . | . . Parts Fried . | . . Impact Corruptions . | . . Robots Melted 2 | . 2 Combat Hostiles 2 | . 2 Parts Melted 11 | . 11 Heat Transferred 3848 | 111 3737 Parts Sabotaged . | . . Parts Stolen . | . . Parts Stripped . | . . Power Chain Reactions . | . . Alert | -11 -10 ------- Run | Yrd Mat Peak Influence 234 | 5 234 Initial 3 | . 3 Average 79 | 1 82 Maximum Alert Level 1 | . 1 Low Security (%) 99 | 100 99 Level 1 . | . . Level 2 . | . . Level 3 . | . . Level 4 . | . . Level 5 . | . . High Security . | . . Max Security . | . . Squads Dispatched 5 | . 5 Investigation 3 | . 3 Extermination . | . . Reinforcement 2 | . 2 Assault . | . . Garrison . | . . Intercept . | . . Searches Triggered . | . . Construction Impeded . | . . Haulers Reinforced . | . . Active Scanning Responses . | . . Cargo Convoy Interrupts . | . . Stealth | -11 -10 --------- Run | Yrd Mat Distress Signals 1 | . 1 Communications Jammed . | . . Distress Signals . | . . Times Spotted 30 | . 30 Peak Tracking Total 3 | . 3 Tactical Retreats 1 | . 1 Traps | -11 -10 ------- Run | Yrd Mat Traps Triggered 2 | . 2 Indirectly . | . . Trap Hack Attempts . | . . Triggered . | . . Disarmed . | . . Reprogrammed . | . . Reused . | . . Traps Extracted . | . . Installed . | . . Triggered . | . . Machines | -11 -10 ---------- Run | Yrd Mat Machines Disabled 1 | . 1 Max in Single Turn 1 | . 1 Machines Repaired . | . . Machines Dismantled . | . . Machines Sabotaged . | . . Overloaded Fab Kills . | . . Hacking | -11 -10 --------- Run | Yrd Mat Machines Accessed 5 | . 5 Terminals 4 | . 4 Fabricators . | . . Repair Stations . | . . Recycling Units 1 | . 1 Scanalyzers . | . . Garrison Access . | . . Total Hacks 12 | . 12 Successful 2 | . 2 Failed 10 | . 10 Catastrophic 2 | . 2 Database Lockouts . | . . Manual 7 | . 7 Terminals 7 | . 7 Fabricators . | . . Repair Stations . | . . Recycling Units 5 | . 5 Scanalyzers . | . . Garrison Access . | . . Terminal Hacks . | . . Fabricator Hacks . | . . Repair Station Hacks . | . . Recycling Unit Hacks . | . . Scanalyzer . | . . Garrison Access Hacks . | . . Unauthorized Hacks 2 | . 2 Terminals 2 | . 2 Botnet 2 | . 2 Fabricators . | . . Repair Stations . | . . Recycling Units . | . . Scanalyzers . | . . Garrison Access . | . . Data Cores Recovered . | . . Used . | . . Hacking Detections 4 | . 4 Full Trace Events 3 | . 3 Feedback Events . | . . Feedback Blocked . | . . Robot Schematics Acquired . | . . Robots Built . | . . Authchips . | . . Time . | . . Total Robot Build Rating . | . . Part Schematics Acquired . | . . Parts Built . | . . Authchips . | . . Time . | . . Total Part Build Rating . | . . Parts Repaired . | . . Time . | . . Parts Recycled . | . . Recycled Matter . | . . Retrieved Matter . | . . Retrieved Components . | . . Parts Scanalyzed . | . . Part Schematics Acquired . | . . Parts Damaged . | . . Bothacking | -11 -10 ------------ Run | Yrd Mat Used RIF Installer . | . . Robots Hacked . | . . Non-combat . | . . Combat . | . . Robot Hacks Applied . | . . Relay Couplers Released . | . . Fabnet Peak Effective % . | . . Robots Rewired . | . . Allies Hacked . | . . Hacks Repelled . | . . Allies | -11 -10 -------- Run | Yrd Mat Total Allies . | . . Largest Group . | . . Highest-Rated Group . | . . Highest-Rated Ally . | . . Total Orders . | . . Ally Attacks . | . . Total Damage . | . . Kills . | . . Allies Corrupted . | . . Allies Melted . | . . Intel | -11 -10 ------- Run | Yrd Mat Robot Analysis Total . | . . Derelict Logs Recovered . | . . Drone Launches . | . . Drone Recoveries . | . . Exploration | -11 -10 ------------- Run | Yrd Mat Turns Passed 2025 | 92 1933 Spaces Moved 951 | 40 911 Core 2 | 2 . Treads 527 | 38 489 Legs 238 | . 238 Wheels 184 | . 184 Hover . | . . Flight . | . . Fastest Speed 50 | 50 95 Average Speed 165 | 154 166 Slowest Speed 330 | 160 330 Overloaded Moves . | . . Propulsion Burnouts . | . . Robots Hopped . | . . Cave-ins Triggered . | . . Exploration Rate (%) 44 | 4 84 Regions Visited 1 Branch Regions . Pre-discovered Areas . | . . Known Exits Taken . | . . Unknown Exits Taken 1 | 1 . Scrap Searched . | . . Spaces Dug 11 | . 11 Terrain Destroyed 60 | . 60 Melee . | . . Projectile . | . . AOE 60 | . 60 Terrain Rammed . | . . Walls Destroyed . | . . Machines Disabled . | . . Actions | -11 -10 --------- Run | Yrd Mat Total 1181 | 61 1120 Wait 23 | . 23 Move 950 | 39 911 Hop . | . . Pick Up 34 | 9 25 Fast Attach . | . . Attach 24 | 7 17 Detach 1 | . 1 Swap 10 | 1 9 Drop 9 | . 9 Fire 130 | 5 125 Melee . | . . Ram . | . . Kick . | . . Crush . | . . Escape Stasis . | . . Rewire . | . . Trap . | . . Miscellaneous . | . . Route ------- -11/Scrapyard -10/Materials (discovered 3 exits: [*Mat x2] / [*Min]) History --------- Turn | Location | Event 10 | -11/Scrapyard | Discovered new exit (range 15) 93 | -11/Scrapyard | Entered Materials 313 | -10/Materials | Build established: Mutant 596 | -10/Materials | Discovered new exit (range 16) 1008 | -10/Materials | Core integrity fell below 50% 1032 | -10/Materials | Core integrity fell below 20% 1468 | -10/Materials | Discovered new exit (range 15) 1693 | -10/Materials | Discovered new exit (range 12) 1967 | -10/Materials | Build established: Scavenger-Mutant 2026 | -10/Materials | Destroyed by G-34 Mercenary with Small Laser Last Messages --------------- 01831_ Acquired 14 matter. 01831_ R-06 Scavenger collects Med. Matter Pod. 01834_ Acquired 1 matter. 01883_ A-02 Transporter destroyed. 01900_ Dropped Aluminum Leg. 01901_ Acquired Lgt. Treads. 01911_ Acquired 24 matter. 01914_ R-06 Scavenger collects Lgt. Ion Engine. 01921_ R-06 Scavenger collects Aluminum Leg. 01948_ K-01 Serf collects debris. 01973_ O-16 Technician: "IFF HANDSHAKE FAILED. SECURING TERMINAL." 01998_ O-16 Technician uses terminal to summon reinforcements. 01998_ ALERT: Hostiles spotted, dispatching reinforcements to Terminal M006. 01998_ O-16 Technician locks terminal. 02004_ O-16 Technician suffers critical hit (Burn). 02020_ Med. Laser destroyed. Map ----- +----------------------------------------------------+ | ########### ## %%% #?????#??????? | | # "" ^ ## #????????????? | | + "" ## #????????????? | | # "T """ ## #????????????? | | # "" """ ## #????????????? | | ! # "" """ ## "#????????????? | | + ## T#????????????? | | ######+########### "#????????????? | | #??# = #??????# #????????????? | | #??# #??????##+#######????????????? | | % #??# """ #???????# #??????????????????? | | #+##### """ #???????# #??????????????????? | | %! # """ #???????# #??????????????????? | | % # #???????# #??????????????????? | | ########???????# #??????????????????? | | #??????????????# ########+##+#??????? | | #??????????????# #??????? | | #??????????????# #??????? | | #??????????????# #??????? | | #??????????????# +??????? | | #+#####???????????####+######## #??????? | | # #???????????????# ] #?????? #??????? | | # #???????????????# #????????#??????? | | # #???????????????# ! #???????????????? | | # #??#######??????# #???????????????? | | # #### #??????# @#???????????????? | | # #??????# "" g ??????????????? | | + T #??????#** "" # ????????????? | | # #??????#** T" # ??????????? | | ## ### #??????#* "" #? ##?????????? | | ##+#### ##??????# "" #? #??????????? | | # # #???????# #?? #??????????? | | # + #???????#########??? #??????????? | | # * # #????????????????????#??????????? | | # # #???????????????????????????????? | | # " " #####???????????????????????????????? | | # "Y" #???????????????????????????????????? | | # """ #???????????????????????????????????? | | # #???????????????????????????????????? | | #######???????????????????????????????????? | | ??????????????????????????????????????????? | | | | | | | | | | | | | | | | | | | +----------------------------------------------------+ Best States ------------- Heat Dissipation 35 Energy Generation 14 Energy Capacity 250 Matter Stores 300 Matter Capacity 300 Sight Range 16 Robot Scan Range 14 Terrain Scan Density 10 Armor Coverage 150 Evasion (%) 41 Recoil Reduction 2 Item Schematics ----------------- None Robot Schematics ------------------ None Fabricated ------------ Nothing Alien Tech Used ----------------- None Achievements -------------- None Challenges ------------ None Game ------ Seed ColdThrusterSplitter Manual? 0 Play Time 00:13:42 Cumulative 34.1 hours Start 2024.04.15 @ 16:33:46 End 2024.04.15 @ 16:46:46 Sessions 1 Manual Loads 0 Difficulty Rogue Special Mode None Game No. 21 Rogue 21 Adventurer 0 Explorer 0 Win Type - Total 0 Types 0/0/0/0/0/0/0/0/0 Lore% 16 Gallery% 32 Achievement% 27 Wizard Run 0 Options --------- Layout 1 ASCII 0 Keyboard 0 Movement Mouse Keybinds 0 Fullscreen 1 Font 32/SmallcapsGlow Map View 50x35 Zoom Use 0% Tactical HUD 1 Map Filters NONE Filters NONE Steam 0 RUN: ab5e72a5-8145-4d97-8856-1dc6b7287973